Cogmind - Beta 14 @@@ ROGUE MODE // 2025.01.01 @ 19:07:01 Player: Nueadkie Result: Destroyed by G-47 Trooper with Particle Gun Performance ------------- Evolutions (2) 1000 Regions Visited (5) 1000 Robots Destroyed (86) 430 Value Destroyed (2091) 2091 Prototype IDs (5) 100 Alien Tech Used (0) 0 Bonus (202) 202 TOTAL SCORE: 4823 Bonus ------- High Alert Combat Kills 84 Follower Combat Kills 118 Cogmind --------- Core Integrity 0/550 Matter 203/300 Energy 100/100 System Corruption 0% Temperature Cool (9) Movement Walking (260) Ox2 Location -8/Materials Parts ------- > --- POWER (1) -------- (None) > --- PROPULSION (4) --- Aluminum Leg > --- UTILITY (4) ------ Large Storage Unit Advanced Visual Processing Unit Signal Interpreter > --- WEAPON (2) ------- High-powered Shotgun > --- INVENTORY (15) --- Heavy Ion Engine Surge Thruster Surge Thruster Surge Thruster Improved VTOL Module Improved Heat Sink Compact Matter Pod (150) Weight Redist. System Improved Sensor Array Improved Terrain Scanner Terrain Scan Processor ECM Suite Improved Propulsion Shielding Hardened Medium Armor Plating Peak State ------------ > --- POWER ------------ Heavy Ion Engine > --- PROPULSION ------- VSS Leg VSS Leg VSS Leg VSS Leg > --- UTILITY ---------- Large Storage Unit Advanced Visual Processing Unit Signal Interpreter Hardened Medium Armor Plating > --- WEAPON ----------- Advanced Beam Cannon High-powered Shotgun > --- INVENTORY -------- Heavy Ion Engine Flight Unit Flight Unit Improved VTOL Module Improved Heat Sink Compact Matter Pod Weight Redist. System Improved Sensor Array Improved Terrain Scanner Terrain Scan Processor ECM Suite Improved Propulsion Shielding Hardened Medium Armor Plating Shock Rifle Rocket Launcher [Rating: 32] Favorites ----------- Power Heavy Ion Engine Engine Heavy Ion Engine Power Core Nuclear Core Propulsion Aluminum Leg Leg Aluminum Leg Flight Unit Improved VTOL Module Utility Signal Interpreter Device Improved Terrain Scanner Storage Large Storage Unit Processor Signal Interpreter Protection Hardened Medium Armor Plating Weapon Particle Cannon Energy Gun Small Laser Energy Cannon Particle Cannon Ballistic Gun Assault Rifle Launcher Grenade Launcher Special Weapon Mining Laser Build | -11 -10 -10 -9 -9 -8 ------- Run | Yrd Mat Min Mat Min Mat Slots Evolved 4 | . . . 2 . 2 Power . | . . . . . . Propulsion 2 | . . . 2 . . Utility 2 | . . . . . 2 Weapon . | . . . . . . Parts Attached 70 | 8 18 . 8 1 35 Power 6 | 1 3 . . . 2 Engine 5 | 1 3 . . . 1 Core 1 | . . . . . 1 Reactor . | . . . . . . Propulsion 29 | 2 5 . 6 . 16 Treads . | . . . . . . Leg 28 | 2 5 . 6 . 15 Wheel . | . . . . . . Hover . | . . . . . . Flight 1 | . . . . . 1 Utility 12 | 2 3 . . . 7 Device 2 | 1 . . . . 1 Storage 3 | 1 2 . . . . Processor 3 | . 1 . . . 2 Hackware . | . . . . . . Protection 4 | . . . . . 4 Artifact . | . . . . . . Weapon 23 | 3 7 . 2 1 10 Energy Gun 7 | 1 1 . 1 1 3 Energy Cannon 6 | . 3 . . . 3 Ballistic Gun 6 | 1 2 . 1 . 2 Ballistic Cannon . | . . . . . . Launcher 3 | . 1 . . . 2 Special Weapon 1 | 1 . . . . . Impact Weapon . | . . . . . . Slashing Weapon . | . . . . . . Piercing Weapon . | . . . . . . Special Melee Weapon . | . . . . . . Unidentified Prototypes 3 | . 1 . . . 2 Parts Lost 20 | . 6 . 1 1 12 Power 4 | . 2 . . . 2 Propulsion 8 | . 2 . . . 6 Utility 2 | . . . . . 2 Weapon 6 | . 2 . 1 1 2 Highest Loss Streak 5 | . 4 . 1 1 5 To Critical Strikes . | . . . . . . Average Slot Usage (%) 97 | . 99 100 99 99 93 Engine 11 | . 13 14 11 11 7 Leg 31 | . 27 28 44 44 32 Storage 12 | . 14 14 11 11 9 Processor 13 | . 12 14 11 11 18 Protection 2 | . . . . . 7 Energy Gun 3 | . 2 . 9 10 3 Energy Cannon 13 | . 20 14 9 . 6 Ballistic Gun 4 | . 4 . 1 11 7 Launcher 1 | . . 14 1 . . Peak Build Rating 32 | 9 13 12 15 15 32 Average Rating 14 | 7 11 12 14 14 25 On Entrance 10 | . 9 12 12 15 15 Naked Turns . | . . . . . . Heaviest Build 44 | 14 36 35 35 34 44 Greatest Support 55 | 20 20 20 40 40 55 Greatest Overweight (x) 3 | 3 2 1 . . 1 Average Overweight (x) . | . . 1 . . . Largest Inventory Capacity 15 | 8 15 15 15 15 15 Average Capacity 12 | 7 11 15 15 15 15 Most Carried 15 | 2 14 14 15 15 15 Average Carried 10 | 1 9 13 14 14 14 Final Capacity 15 | 8 15 15 15 15 15 Final Carried 15 | 2 14 14 15 15 14 Class Distribution -------------------- 68% | Mutant 31% | Scavenger-Mutant Dominant Class ---------------- Mutant | -10/Materials Mutant | -10/Mines Scavenger-Mutant | -9/Materials Scavenger-Mutant | -9/Mines Scavenger-Mutant | -8/Materials Resources | -11 -10 -10 -9 -9 -8 ----------- Run | Yrd Mat Min Mat Min Mat Matter Collected 1395 | 316 403 50 85 50 491 Remotely . | . . . . . . Salvage Created 2860 | 98 1056 149 277 134 1146 Parts 182 | 13 58 6 11 12 82 Haulers Intercepted 7 | . 2 . 1 . 4 Recyclers Shooed 2 | . 1 . . 1 . Parts Field Recycled . | . . . . . . Retrieved Matter . | . . . . . . Parts Self-Destructed . | . . . . . . Prevented . | . . . . . . Kills | -11 -10 -10 -9 -9 -8 ------- Run | Yrd Mat Min Mat Min Mat Combat Hostiles Destroyed 57 | . 23 2 6 4 22 Guns 33 | . 16 . . 4 13 Cannons 15 | . 7 1 3 . 4 AOE 7 | . . 1 2 . 4 Classes Destroyed 13 | 1 5 1 1 1 4 Worker 2 | . . . . 1 1 Builder 4 | . . 1 . . 3 Tunneler 7 | 7 . . . . . Hauler 7 | . 2 . 1 . 4 Recycler 5 | . 2 2 . 1 . Watcher 4 | . 3 . . . 1 Swarmer 15 | . 6 . 2 4 3 Cutter 3 | . . . . . 3 Grunt 26 | . 17 2 1 . 6 Duelist 1 | . . . . . 1 Sentry 7 | . . . 3 . 4 Specialist 4 | . . . . . 4 Heavy 1 | . . . . . 1 Best Kill Streak 12 | 3 12 5 3 3 10 Combat Bots Only 11 | . 11 2 3 3 6 Max Kills in Single Turn 3 | 1 1 2 2 1 3 Gunslinging . | . . . . . . Exploded 3 | . . 1 2 . 3 Melee . | . . . . . . Uniques/NPCs Destroyed . | . . . . . . Combat | -11 -10 -10 -9 -9 -8 -------- Run | Yrd Mat Min Mat Min Mat Hostile Shots Fired 374 | . 118 7 43 32 174 Missed 90 | . 23 1 8 7 51 Damage Taken 3919 | . 1048 96 397 188 2190 Core 845 | . 189 14 43 43 556 Absorbed by Shields . | . . . . . . Regen/Repaired (Parts) 67 | . 67 . . . . Core Remaining (%) 65 | 100 . 18 . 78 . Volleys Fired 275 | 34 106 10 19 14 92 Largest 2 | 2 2 1 2 2 2 Hottest 136 | 120 136 68 124 73 136 Shots Fired 466 | 52 187 10 36 28 153 Gun 320 | 35 135 . 19 28 103 Cannon 123 | . 52 7 16 . 48 Launcher 6 | . . 3 1 . 2 Special 17 | 17 . . . . . Kinetic 220 | 25 97 . 2 14 82 Thermal 219 | 27 90 7 33 14 48 Explosive 6 | . . 3 1 . 2 Electromagnetic 21 | . . . . . 21 Robot Hit Streak 11 | 4 10 7 9 3 11 Robot Miss Streak 8 | 3 5 1 3 7 8 Penetration Max . | . . . . . . Secondary Targets 2 | . 1 . . . 1 Max Gunslinging Chain 1 | . 1 . . . 1 Shots Hit Robots 282 | 22 117 7 22 9 105 Core Hits 136 | 8 46 8 11 7 56 Critical Kills 2 | . . . . . 2 Critical Parts Destroyed . | . . . . . . Critical Strikes 5 | . . . 2 . 3 Burn 2 | . . . 2 . . Meltdown 1 | . . . . . 1 Destroy 1 | . . . . . 1 Corrupt 1 | . . . . . 1 Melee Attacks . | . . . . . . Impact . | . . . . . . Slashing . | . . . . . . Piercing . | . . . . . . Sneak Attacks . | . . . . . . Combat Hostiles . | . . . . . . Follow-up Attacks . | . . . . . . Damage Inflicted 5366 | 309 1602 361 489 130 2475 Guns 2854 | 261 969 . 161 130 1333 Cannons 1633 | . 633 124 224 . 652 Explosions 831 | . . 237 104 . 490 Melee . | . . . . . . Ramming . | . . . . . . Kinetic 2140 | 206 706 . 17 93 1118 Thermal 2450 | 103 896 124 368 37 922 Explosive 561 | . . 237 104 . 220 Electromagnetic 215 | . . . . . 215 Impact . | . . . . . . Slashing . | . . . . . . Piercing . | . . . . . . Highest Corruption . | . . . . . . Average Corruption . | . . . . . . Corruption Purged . | . . . . . . Corruption Blocked . | . . . . . . Overload Shots . | . . . . . . Overflow Damage 147 | . . . . . 147 Projectiles . | . . . . . . Explosions 147 | . . . . . 147 Melee . | . . . . . . Knockbacks . | . . . . . . Impact . | . . . . . . Kinetic . | . . . . . . Secondary . | . . . . . . Self-Inflicted Damage 117 | . . 22 . . 95 Shots 4 | . . 1 . . 3 Rammed . | . . . . . . Targets Rammed . | . . . . . . Kicked . | . . . . . . Crushed . | . . . . . . Highest Temperature 355 | 106 322 106 342 24 355 Average Temperature 80 | 26 97 45 144 9 73 Received Heat Transfer 1056 | . 459 42 96 . 459 Effects 6 | . 2 . 2 . 2 Energy Bleed 1 | . . . 1 . . Interference 1 | . 1 . . . . Short Circuit 2 | . 1 . . . 1 Damage (minor) 2 | . . . 1 . 1 Siege Activations . | . . . . . . Robots Corrupted . | . . . . . . Combat Hostiles . | . . . . . . Parts Fried . | . . . . . . Impact Corruptions . | . . . . . . Robots Melted 2 | . . . 1 . 1 Combat Hostiles 2 | . . . 1 . 1 Parts Melted 8 | . 2 . 3 1 2 Heat Transferred 4564 | 225 1747 222 925 111 1334 Parts Sabotaged . | . . . . . . Parts Stolen . | . . . . . . Parts Stripped . | . . . . . . Power Chain Reactions . | . . . . . . Alert | -11 -10 -10 -9 -9 -8 ------- Run | Yrd Mat Min Mat Min Mat Peak Influence 591 | 35 254 109 275 243 591 Initial 94 | . . 25 42 78 94 Average 140 | 10 88 48 179 191 320 Maximum Alert Level 2 | . 1 . 1 1 2 Low Security (%) 69 | 100 91 100 65 30 8 Level 1 27 | . 8 . 34 69 77 Level 2 3 | . . . . . 13 Level 3 . | . . . . . . Level 4 . | . . . . . . Level 5 . | . . . . . . High Security . | . . . . . . Max Security . | . . . . . . Squads Dispatched 15 | . 7 . 2 . 6 Investigation 7 | . 5 . 1 . 1 Extermination . | . . . . . . Reinforcement 8 | . 2 . 1 . 5 Assault . | . . . . . . Garrison . | . . . . . . Intercept . | . . . . . . Searches Triggered . | . . . . . . Construction Impeded 1 | . . . . . 1 Haulers Reinforced . | . . . . . . Active Scanning Responses . | . . . . . . Cargo Convoy Interrupts . | . . . . . . Stealth | -11 -10 -10 -9 -9 -8 --------- Run | Yrd Mat Min Mat Min Mat Distress Signals 5 | . 1 . 4 . . Communications Jammed . | . . . . . . Distress Signals . | . . . . . . Times Spotted 101 | . 35 2 20 11 33 Peak Tracking Total 8 | . 5 2 8 4 6 Tactical Retreats 13 | . 2 . 3 2 6 Traps | -11 -10 -10 -9 -9 -8 ------- Run | Yrd Mat Min Mat Min Mat Traps Triggered 3 | . 2 . 1 . . Indirectly . | . . . . . . Trap Hack Attempts . | . . . . . . Triggered . | . . . . . . Disarmed . | . . . . . . Reprogrammed . | . . . . . . Reused . | . . . . . . Traps Extracted . | . . . . . . Installed . | . . . . . . Triggered . | . . . . . . Machines | -11 -10 -10 -9 -9 -8 ---------- Run | Yrd Mat Min Mat Min Mat Machines Disabled 5 | . . . . . 5 Max in Single Turn 3 | . . . . . 3 Machines Repaired . | . . . . . . Machines Dismantled . | . . . . . . Machines Sabotaged . | . . . . . . Overloaded Fab Kills . | . . . . . . Hacking | -11 -10 -10 -9 -9 -8 --------- Run | Yrd Mat Min Mat Min Mat Machines Accessed 14 | . 8 . 3 . 3 Terminals 10 | . 5 . 3 . 2 Fabricators . | . . . . . . Repair Stations 1 | . 1 . . . . Recycling Units 2 | . 2 . . . . Scanalyzers 1 | . . . . . 1 Garrison Access . | . . . . . . Total Hacks 32 | . 21 . 4 . 7 Successful 22 | . 17 . 2 . 3 Failed 10 | . 4 . 2 . 4 Catastrophic 4 | . 1 . 1 . 2 Database Lockouts . | . . . . . . Manual 1 | . 1 . . . . Terminals 23 | . 15 . 4 . 4 Fabricators . | . . . . . . Repair Stations 2 | . 2 . . . . Recycling Units 4 | . 4 . . . . Scanalyzers 3 | . . . . . 3 Garrison Access . | . . . . . . Terminal Hacks 14 | . 11 . 2 . 1 Record 4 | . 3 . . . 1 Prototype ID Bank 1 | . 1 . . . . Repair Station Index 1 | . . . 1 . . Alert Level 2 | . 1 . 1 . . Unreport Threat 1 | . 1 . . . . Locate Traps 2 | . 2 . . . . Hauler Manifests 1 | . 1 . . . . Zone Layout 2 | . 2 . . . . Fabricator Hacks . | . . . . . . Repair Station Hacks 2 | . 2 . . . . Scan Component 1 | . 1 . . . . Repair 1 | . 1 . . . . Recycling Unit Hacks 4 | . 4 . . . . Process 1 | . 1 . . . . Report Inventory 2 | . 2 . . . . Retrieve Matter 1 | . 1 . . . . Scanalyzer 2 | . . . . . 2 Insert Component 1 | . . . . . 1 Analyze 1 | . . . . . 1 Garrison Access Hacks . | . . . . . . Unauthorized Hacks . | . . . . . . Terminals . | . . . . . . Fabricators . | . . . . . . Repair Stations . | . . . . . . Recycling Units . | . . . . . . Scanalyzers . | . . . . . . Garrison Access . | . . . . . . Data Cores Recovered . | . . . . . . Used . | . . . . . . Hacking Detections 11 | . 6 . 2 . 3 Full Trace Events 5 | . 3 . . . 2 Feedback Events . | . . . . . . Feedback Blocked . | . . . . . . Robot Schematics Acquired . | . . . . . . Robots Built . | . . . . . . Authchips . | . . . . . . Time . | . . . . . . Total Robot Build Rating . | . . . . . . Part Schematics Acquired 1 | . . . . . 1 Parts Built . | . . . . . . Authchips . | . . . . . . Time . | . . . . . . Total Part Build Rating . | . . . . . . Parts Repaired 1 | . 1 . . . . Time 32 | . 32 . . . . Parts Recycled . | . . . . . . Recycled Matter 344 | . 344 . . . . Retrieved Matter 376 | . 376 . . . . Retrieved Components . | . . . . . . Parts Scanalyzed 1 | . . . . . 1 Part Schematics Acquired 1 | . . . . . 1 Parts Damaged . | . . . . . . Bothacking | -11 -10 -10 -9 -9 -8 ------------ Run | Yrd Mat Min Mat Min Mat Used RIF Installer . | . . . . . . Robots Hacked . | . . . . . . Non-combat . | . . . . . . Combat . | . . . . . . Robot Hacks Applied . | . . . . . . Relay Couplers Released . | . . . . . . Fabnet Peak Effective % . | . . . . . . Robots Rewired . | . . . . . . Allies Hacked . | . . . . . . Hacks Repelled . | . . . . . . Allies | -11 -10 -10 -9 -9 -8 -------- Run | Yrd Mat Min Mat Min Mat Total Allies 3 | . . 3 . . . Largest Group 3 | . . 3 3 . . Highest-Rated Group 40 | . . 40 40 . . Highest-Rated Ally 16 | . . 16 16 . . Total Orders . | . . . . . . Ally Attacks 27 | . . . 27 . . Total Damage 302 | . . . 302 . . Kills 4 | . . . 4 . . Allies Corrupted . | . . . . . . Allies Melted . | . . . . . . Intel | -11 -10 -10 -9 -9 -8 ------- Run | Yrd Mat Min Mat Min Mat Robot Analysis Total . | . . . . . . Derelict Logs Recovered 2 | . . . . 2 . Drone Launches . | . . . . . . Drone Recoveries . | . . . . . . Exploration | -11 -10 -10 -9 -9 -8 ------------- Run | Yrd Mat Min Mat Min Mat Turns Passed 4809 | 666 1992 369 552 139 1091 Spaces Moved 2255 | 362 852 182 318 55 486 Core 8 | 8 . . . . . Treads . | . . . . . . Legs 2247 | 354 852 182 318 55 486 Wheels . | . . . . . . Hover . | . . . . . . Flight . | . . . . . . Fastest Speed 50 | 50 120 190 120 120 90 Average Speed 148 | 122 175 190 120 120 125 Slowest Speed 260 | 200 260 190 120 120 190 Overloaded Moves . | . . . . . . Propulsion Burnouts . | . . . . . . Robots Hopped . | . . . . . . Cave-ins Triggered . | . . . . . . Exploration Rate (%) 37 | 13 93 37 31 12 36 Regions Visited 5 Branch Regions 2 Pre-discovered Areas . | . . . . . . Known Exits Taken 4 | . 1 1 1 1 . Unknown Exits Taken 1 | 1 . . . . . Scrap Searched . | . . . . . . Spaces Dug . | . . . . . . Terrain Destroyed 102 | 6 . 22 10 . 64 Melee . | . . . . . . Projectile 6 | 6 . . . . . AOE 96 | . . 22 10 . 64 Terrain Rammed . | . . . . . . Walls Destroyed . | . . . . . . Machines Disabled . | . . . . . . Actions | -11 -10 -10 -9 -9 -8 --------- Run | Yrd Mat Min Mat Min Mat Total 3224 | 495 1166 197 453 101 812 Wait 545 | 90 163 . 102 27 163 Move 2250 | 361 851 181 317 54 486 Hop . | . . . . . . Pick Up 42 | 2 20 3 3 3 11 Fast Attach 21 | 7 3 . 1 . 10 Attach 15 | . 6 . 2 1 6 Detach . | . . . . . . Swap 34 | 1 9 . 5 . 19 Drop 36 | . 8 3 4 2 19 Fire 275 | 34 106 10 19 14 92 Melee . | . . . . . . Ram . | . . . . . . Kick . | . . . . . . Crush . | . . . . . . Escape Stasis . | . . . . . . Rewire 6 | . . . . . 6 Trap . | . . . . . . Miscellaneous . | . . . . . . Route ------- -11/Scrapyard -10/Materials (discovered 4 exits: *Mat x3 / *Min) -10/Mines (discovered 2 exits: *Mat x2) -9/Materials (discovered 2 exits: *Mat / *Min) -9/Mines -8/Materials (discovered 1 exit: [*Fac]) History --------- Turn | Location | Event 32 | -11/Scrapyard | Discovered new exit (range 15) 667 | -11/Scrapyard | Entered Materials 668 | -10/Materials | Build established: Mutant 1042 | -10/Materials | Discovered new exit (range 16) 1120 | -10/Materials | Core integrity fell below 50% 1122 | -10/Materials | Lost 4 parts (2p2w) 1148 | -10/Materials | Destroyed 11 combat bots 1183 | -10/Materials | Identified exit to Mines 1438 | -10/Materials | Discovered new exit (range 16) 1467 | -10/Materials | Identified exit to Materials 1871 | -10/Materials | Discovered exit to Materials (range 15) 2165 | -10/Materials | Discovered exit to Materials (range 13) 2524 | -10/Materials | Repaired Particle Cannon 2659 | -10/Materials | Entered Mines 2835 | -10/Mines | Discovered exit to Materials (range 9) 2921 | -10/Mines | Core integrity fell below 20% 2999 | -10/Mines | Discovered exit to Materials (range 11) 3016 | -10/Mines | Assisted by bots powering up and referring to "LRC-V3" 3028 | -10/Mines | Entered Materials 3028 | -9/Materials | Accompanied by 3 allies 3028 | -9/Materials | Evolved 2 slots: Propulsion x2 3299 | -9/Materials | Discovered new exit (range 11) 3315 | -9/Materials | Identified exit to Materials 3386 | -9/Materials | Lost 3 allies 3412 | -9/Materials | Build established: Scavenger-Mutant 3536 | -9/Materials | Discovered new exit (range 15) 3553 | -9/Materials | Identified exit to Mines 3580 | -9/Materials | Entered Mines 3670 | -9/Mines | Received a Rocket Launcher from a helpful Derelict 3707 | -9/Mines | Learned 2 Materials zone layouts 3710 | -9/Mines | Discovered exit to Materials (range 7) 3715 | -9/Mines | Assembled infested the area 3719 | -9/Mines | Entered Materials 3719 | -8/Materials | Evolved 2 slots: Utility x2 4147 | -8/Materials | Discovered new exit (range 3) 4646 | -8/Materials | Core integrity fell below 50% 4748 | -8/Materials | Core integrity fell below 20% 4810 | -8/Materials | Destroyed by G-47 Trooper with Particle Gun Last Messages --------------- 04791_ Shock Rifle destroyed. 04791_ K-01 Serf collects debris. 04792_ U-05 Engineer lays Concrete. 04794_ K-01 Serf collects debris. 04794_ R-06 Scavenger inserts Terrain Scan Processor into recycling unit. 04794_ U-05 Engineer builds a Wall. 04794_ K-01 Serf collects debris. 04795_ Recycling unit begins recycling process. 04795_ K-01 Serf collects debris. 04795_ Y-45 Defender destroyed. 04796_ K-01 Serf collects debris. 04798_ U-05 Engineer builds a Door. 04798_ K-01 Serf collects debris. 04804_ U-05 Engineer lays Concrete. 04806_ K-01 Serf collects debris. 04806_ U-05 Engineer lays Concrete. 04808_ K-01 Serf collects debris. 04808_ U-05 Engineer builds a Wall. 04809_ K-01 Serf collects debris. 04809_ Aluminum Leg destroyed. Map ----- +----------------------------------------------------+ | ????????????????????????????????????# + + "" | | ????????????????????????????????????# # # "" | | ????????????????????????????????????# ! # # "" | | ????????????????????????????????????####### #### | | ?????????????????????????????????????????# #?? | | ?????????????????????????????????????????# #?? | | ?????????????????????????????????????????# #?? | | ??????????????????+###???????????????????# #?? | | ??????????????#?? ??????????????????# #?? | | ??????????????# ? ]]] ??????############## ##?? | | ??????"???????# ]] ?????# ] # #??? | | ?????"" ??????# ]] ??????# """ """ # #??? | | ????? ?????# [ ??????# """"""""" +% #??? | | ?????"" ????# ??????# """" # #??? | | ?????"" ????# "Y" ???????# != # #??? | | ??????" * ??## """ ???????# = # #??? | | ??????? ###" ???????########+###### #??? | | ??????###"" " ###??###########??????# #??? | | ??????#" = "#??# #??????# #??? | | ??????#" * "#??# # ######% #??? | | ?????##" * "#### # #??? | | ##### / ?# + #??? | | ??? + * "##?# # #??? | | ?????### " #?#!k #### ### #### | | ?????# """" # r#;###k #?# ??# # | | ???????# uu rm g/@%g #?##???# #="" | | ???????# #; %## # ;##########+##??????# #["" | | ???????????##!%%# ##????????# #???????# # %" | | ????????????# =#######?????????# #???????# +% | | ????????????# #??????????######+###?????# #="" | | ????????????# #??????????# #?????# #*"" | | ???????#!! ## #??????????# #?????#[!*# "" | | ???????#!! ########### #?????#[[!+ | | ???????#!! # """ #?????# #+#### | | ???????#!! # """"" #?????#[# | | ???????#== #]""""" #?????#[# | | ???????#== ####### # """"" #?????#!# | | ?????????########??????# #!%""" #?????# # [ | | ???????????????????????# #[ #???### ###### | | ???????????????????????# #####+######## #??? | | ???????????????????????# !%! #??? | | ???????????????????????# *= #?## | | ???????????????????????# !!!T !#?# | | ???????????????????????########%! #?# | | ??????????????????????????????#!! #?# | | ??????????????????????????????#! """ """ #?# | | ??????????????????????????????# """ """ ### | | ??????????????????????????????# """ """ ]#% | | ??????????????????????????????# %+% | | ???????????????????????# """" # #= | +----------------------------------------------------+ Best States ------------- Heat Dissipation 45 Energy Generation 14 Energy Capacity 280 Matter Stores 300 Matter Capacity 300 Sight Range 20 Terrain Scan Range 16 Terrain Scan Density 10 Armor Coverage 225 Evasion (%) 57 Item Schematics ----------------- Imp. VTOL Module | -8/Materials | Scanalyzed Robot Schematics ------------------ None Fabricated ------------ Nothing Alien Tech Used ----------------- None Achievements -------------- Everything Is Under Control Challenges ------------ None Game ------ Seed OvertunedCoreTube Manual? 0 Play Time 00:52:28 Cumulative 14.1 hours Start 2024.12.31 @ 18:54:54 End 2025.01.01 @ 19:07:01 Sessions 3 Manual Loads 0 Difficulty Rogue Special Mode None Game No. 16 Rogue 16 Adventurer 0 Explorer 0 Win Type - Total 0 Types 0/0/0/0/0/0/0/0/0 Lore% 11 Gallery% 19 Achievement% 18 Wizard Run 0 Options --------- Layout 0 ASCII 0 Keyboard 0 Movement Numpad Keybinds 0 Fullscreen 1 Font 18/SmallcapsGlow Map View 112x50 Zoom Use 0% Tactical HUD 1 Map Filters NONE Filters NONE Steam 1 RUN: 67a6382d-b7df-4162-9132-c1b5a8be4d03